bitfinex/quotes_BTCUSD_20220205
["timestamp","ask_amount","ask_price","bid_price","bid_amount"]
[1644080053719,0.0001191,41397.0,41396.0,0.35539481]
[1644080054011,0.16984685,41397.0,41395.0,0.06713225]
[1644080054208,0.16984685,41397.0,41386.0,0.20262264]
[1644080054209,0.06817945,41388.0,41386.0,0.20262264]
[1644080054408,0.06817945,41388.0,41384.0,1.19472429]
[1644080054409,0.06617945,41388.0,41384.0,1.19472429]
[1644080054608,0.0433,41387.0,41384.0,0.76890129]
[1644080055010,0.103735,41387.0,41384.0,0.76390129]
[1644080055210,0.295188,41386.0,41384.0,0.40123029]
[1644080055410,0.26455675,41385.0,41382.0,9.96e-05]
[1644080055610,0.555,41383.0,41382.0,9.96e-05]
[1644080055914,0.6,41381.0,41378.0,0.00058176]
[1644080056113,0.4,41379.0,41377.0,0.00116352]
[1644080056318,0.0444,41378.0,41375.0,0.02869785]
[1644080056514,0.0444,41378.0,41359.0,0.28914199]
[1644080056515,0.7,41374.0,41359.0,0.28914199]
[1644080056715,0.7,41374.0,41360.0,0.1132596]
[1644080056716,0.05,41363.0,41360.0,0.1132596]
[1644080056969,0.1958561,41366.0,41361.0,0.75]
[1644080057167,0.1443772,41372.0,41360.0,0.1132596]
[1644080057168,0.06046,41368.0,41362.0,0.29942787]
[1644080057567,0.0444,41367.0,41362.0,0.13717]
[1644080057970,0.120919,41366.0,41365.0,0.27077087]
[1644080058167,0.120919,41366.0,41359.0,0.0489]
[1644080058168,0.165319,41366.0,41359.0,0.0489]
[1644080058569,0.165319,41366.0,41363.0,0.00075067]
[1644080059469,0.181386,41373.0,41364.0,0.75]
[1644080059470,0.060459,41367.0,41364.0,0.75]
[1644080059670,0.0444,41372.0,41365.0,0.96208518]
[1644080060068,0.0444,41372.0,41365.0,0.76208518]
[1644080060269,0.0444,41372.0,41362.0,0.00075068]
[1644080060476,0.104854,41372.0,41362.0,0.00075068]
[1644080060709,0.104854,41372.0,41359.0,0.0489]
[1644080060710,0.060459,41370.0,41359.0,0.0489]
[1644080060910,0.05,41368.0,41359.0,0.0489]
[1644080061110,0.0444,41367.0,41359.0,0.2694307]
[1644080061310,0.22781329,41363.0,41356.0,0.09954172]
[1644080061518,0.02043962,41358.0,41356.0,0.09954172]
[1644080062310,0.02043962,41358.0,41357.0,0.3]
[1644080062509,0.02043962,41358.0,41357.0,0.35227801]
[1644080063115,0.02043962,41358.0,41357.0,0.67788426]
[1644080063311,0.02043962,41358.0,41357.0,0.77788426]
[1644080063811,0.02043962,41358.0,41357.0,0.4411806]
[1644080064013,0.02043962,41358.0,41357.0,0.4396806]
[1644080064212,0.02043962,41358.0,41357.0,0.3396806]
[1644080064855,0.02043962,41358.0,41357.0,0.27560625]
[1644080065354,0.15,41369.0,41357.0,0.27560625]
[1644080065554,0.24,41358.0,41357.0,0.27560625]
[1644080065955,0.24,41358.0,41356.0,0.09954172]
[1644080066156,0.3444,41357.0,41356.0,0.09954172]
[1644080066357,0.75,41356.0,41353.0,0.0013298]
[1644080066564,0.05,41354.0,41353.0,0.0013298]
[1644080066858,0.05,41354.0,41352.0,0.52934798]
[1644080066859,0.0444,41354.0,41352.0,0.52934798]
[1644080067055,0.060496,41356.0,41352.0,0.00075098]
[1644080067259,0.060496,41356.0,41348.0,1.83129313]
[1644080067457,0.0444,41355.0,41348.0,1.78129313]
[1644080067656,0.0444,41355.0,41349.0,0.00603374]
[1644080067956,0.0444,41355.0,41349.0,0.00623259]
[1644080068404,0.0444,41355.0,41347.0,0.50744514]
[1644080068405,0.75,41351.0,41347.0,0.50744514]
[1644080068609,0.05,41352.0,41346.0,0.05]
[1644080068610,0.7,41347.0,41346.0,0.05]
[1644080068809,0.0444,41347.0,41346.0,0.015]
[1644080069006,0.104896,41347.0,41346.0,0.015]
[1644080069210,0.060496,41347.0,41346.0,0.22764579]
[1644080069405,0.05,41356.0,41346.0,0.30574751]
[1644080069605,0.0444,41347.0,41346.0,0.30574751]
[1644080069807,0.0444,41356.0,41346.0,0.65695419]
[1644080070006,0.24,41358.0,41355.0,0.36042041]
[1644080070205,0.24,41358.0,41356.0,0.22950977]
[1644080070410,0.24,41358.0,41355.0,0.00019887]
[1644080070605,0.24,41358.0,41348.0,0.00019887]
[1644080070804,0.24,41358.0,41346.0,0.115]
[1644080071010,0.24,41358.0,41347.0,0.29867498]
[1644080071207,0.52291233,41360.0,41355.0,0.2]
[1644080071409,0.52291233,41360.0,41356.0,0.0444]
[1644080071607,1.233e-05,41360.0,41356.0,0.0394]
[1644080071877,0.02197342,41368.0,41359.0,0.0864387]
[1644080072066,0.02197342,41368.0,41360.0,0.0444]
[1644080072264,0.02197342,41368.0,41360.0,0.3944]
[1644080072467,0.060447,41380.0,41375.0,0.24737696]
[1644080072866,0.060447,41380.0,41378.0,0.38392254]
[1644080073466,0.38218,41383.0,41378.0,0.38392254]
[1644080074765,0.05,41385.0,41378.0,0.62410295]
[1644080074965,0.055435,41386.0,41378.0,0.62410295]
[1644080075164,0.055435,41386.0,41380.0,0.06714818]
[1644080075368,0.055435,41386.0,41368.0,0.23009713]
[1644080075369,0.00075132,41384.0,41368.0,0.23009713]
[1644080075605,0.060447,41380.0,41367.0,0.02197342]
[1644080075804,0.35809683,41380.0,41367.0,0.02197342]
[1644080076006,0.060447,41380.0,41367.0,0.02197342]
[1644080076305,0.05075132,41384.0,41376.0,0.0831283]
[1644080076306,0.24525079,41382.0,41376.0,0.0831283]
[1644080076506,0.05,41384.0,41376.0,0.0831283]
[1644080076905,0.05,41385.0,41376.0,0.0831283]
[1644080077506,0.120888,41383.0,41373.0,0.24657597]
[1644080077706,0.25761509,41381.0,41373.0,0.24657597]
[1644080077905,0.27114763,41383.0,41372.0,0.01998891]
[1644080078304,0.05,41382.0,41372.0,0.01998891]
[1644080078505,0.05,41382.0,41372.0,0.09400605]
[1644080078706,0.05,41382.0,41372.0,0.01998891]
[1644080078905,0.00026017,41379.0,41372.0,0.01998891]
[1644080079454,0.00026017,41379.0,41369.0,0.02086445]
[1644080079858,0.28525318,41382.0,41369.0,0.02086445]
[1644080080154,0.00075195,41376.0,41369.0,0.62102688]
[1644080080352,0.06045,41375.0,41369.0,0.62102688]
[1644080080554,0.06045,41375.0,41369.0,0.25760475]
[1644080080755,0.06045,41375.0,41369.0,0.02086445]
[1644080081052,0.06045,41375.0,41369.0,0.04028006]
[1644080081354,0.06045,41375.0,41369.0,0.01941561]
[1644080081355,0.05,41370.0,41369.0,0.01941561]
[1644080081561,0.05,41370.0,41364.0,0.05]
[1644080081758,0.05,41367.0,41360.0,0.20000931]
[1644080081954,0.05,41367.0,41352.0,3.55260422]
[1644080082158,0.060474,41363.0,41352.0,3.55260422]
[1644080082354,0.060474,41363.0,41352.0,3.55185185]
[1644080082553,0.00075213,41362.0,41361.0,0.07531096]
[1644080083104,0.00075213,41362.0,41361.0,0.30382691]
[1644080083505,0.110464,41372.0,41361.0,0.30382691]
[1644080083707,0.0007521,41364.0,41362.0,0.2851236]
[1644080084307,0.0007521,41364.0,41363.0,0.380234]
[1644080084509,0.0007521,41364.0,41363.0,0.69595431]
[1644080084710,0.15,41381.0,41363.0,0.69595431]
[1644080084908,0.15,41381.0,41363.0,0.36012031]
[1644080085207,0.26899114,41379.0,41369.0,0.26877982]
[1644080085407,0.15,41381.0,41369.0,0.66559809]
[1644080086307,0.1,41381.0,41369.0,0.66559809]
[1644080086509,0.25603208,41380.0,41369.0,0.66559809]
[1644080086707,0.20603208,41380.0,41369.0,0.66559809]
[1644080086954,0.05,41380.0,41369.0,0.93970497]
[1644080087156,0.05,41380.0,41370.0,0.75]
[1644080087359,0.00075238,41372.0,41370.0,0.00019399]
[1644080087554,0.00075238,41372.0,41369.0,0.95912058]
[1644080087754,0.13988238,41372.0,41369.0,0.95912058]
[1644080088355,0.13913,41372.0,41369.0,0.95912058]
[1644080088958,0.13913,41372.0,41370.0,0.335834]
[1644080089154,0.13913,41372.0,41371.0,0.31196214]
[1644080089155,0.23188,41372.0,41371.0,0.31196214]
[1644080089356,0.05,41380.0,41372.0,0.75]
[1644080089557,0.24154,41379.0,41372.0,0.75]
[1644080089757,0.442613,41388.0,41372.0,0.75019399]
[1644080089962,0.442613,41388.0,41382.0,0.22126879]
[1644080090156,0.060433,41388.0,41382.0,0.28376735]
[1644080090357,0.060433,41388.0,41382.0,0.35948184]
[1644080090603,0.060433,41388.0,41382.0,0.07571449]
[1644080090604,0.05,41384.0,41382.0,0.07571449]
[1644080090803,0.05,41384.0,41373.0,0.00019399]
[1644080090804,0.08145147,41383.0,41373.0,0.00019399]
[1644080091004,0.08145147,41383.0,41372.0,0.75019399]
[1644080091203,0.08145147,41383.0,41379.0,0.22846209]
[1644080091405,0.08145147,41383.0,41373.0,0.00019399]
[1644080091604,0.08145147,41383.0,41372.0,0.75]
[1644080091605,0.08145147,41383.0,41376.0,0.35822557]
[1644080091806,0.02100947,41383.0,41377.0,0.31110071]
[1644080092006,0.05,41384.0,41377.0,0.39788505]
[1644080092308,0.00075226,41382.0,41377.0,0.39788505]
[1644080093104,0.160434,41389.0,41377.0,0.41877774]
[1644080093105,0.05,41388.0,41377.0,0.41877774]
[1644080093308,0.160434,41389.0,41377.0,0.41877774]
[1644080093608,0.00075226,41382.0,41377.0,0.39784822]
[1644080094107,0.00075226,41382.0,41378.0,0.55094214]
[1644080094372,0.220844,41400.0,41378.0,0.55094214]
[1644080094373,0.220844,41400.0,41378.0,0.58062302]
[1644080094557,0.00075226,41382.0,41381.0,0.335834]
[1644080094755,0.00075226,41382.0,41381.0,0.49039271]
[1644080094756,2.26e-06,41382.0,41381.0,0.49039271]
[1644080094957,2.26e-06,41382.0,41381.0,0.530234]
[1644080095159,2.26e-06,41382.0,41381.0,0.53042799]
[1644080095356,0.3,41398.0,41391.0,0.26727199]
[1644080095556,0.02,41399.0,41391.0,0.26727199]
[1644080095754,0.02,41399.0,41392.0,0.34146833]
[1644080095954,0.02,41399.0,41396.0,0.07822833]
[1644080096155,0.02,41399.0,41391.0,0.26727199]
[1644080096357,0.05,41392.0,41382.0,0.00025173]
[1644080096557,0.05,41392.0,41382.0,5.774e-05]
[1644080096758,0.05,41392.0,41382.0,0.00025173]
[1644080096962,0.00075217,41389.0,41382.0,5.774e-05]
[1644080097257,0.00075217,41389.0,41388.0,0.07056917]
[1644080097860,0.05,41389.0,41386.0,0.29933827]
[1644080098314,0.00075215,41391.0,41386.0,0.29933827]
[1644080098914,0.00075215,41391.0,41387.0,0.08985518]
[1644080099115,0.05,41392.0,41387.0,0.08985518]
[1644080099318,0.00075215,41391.0,41387.0,0.08985518]
[1644080099916,0.05,41388.0,41386.0,0.01887089]
[1644080100115,0.05,41387.0,41386.0,0.01887089]
[1644080100320,0.06118115,41391.0,41386.0,0.01887089]
[1644080100321,0.060429,41391.0,41386.0,0.01887089]
[1644080100518,0.05,41387.0,41386.0,0.01887089]
[1644080101319,0.0944,41387.0,41386.0,0.01887089]
[1644080101519,0.060438,41389.0,41387.0,0.9056]
[1644080101719,0.35839152,41388.0,41387.0,0.542926]
[1644080101959,0.40279152,41388.0,41387.0,0.5440079]
[1644080102157,0.104846,41388.0,41387.0,0.5440079]
[1644080102358,0.104846,41388.0,41387.0,0.1813409]
[1644080102962,0.2,41387.0,41382.0,5.774e-05]
[1644080103156,0.2,41387.0,41382.0,0.02050556]
[1644080103157,0.2444,41387.0,41382.0,0.02050556]
[1644080103356,0.2944,41387.0,41382.0,0.02050556]
[1644080103557,0.3444,41387.0,41382.0,0.02050556]
[1644080103759,0.4444,41387.0,41382.0,0.02050556]
[1644080104159,0.0451522,41387.0,41382.0,0.02050556]
[1644080104357,0.0007522,41387.0,41382.0,0.02050556]
[1644080104959,0.0444,41386.0,41382.0,0.02050556]
[1644080105159,0.060438,41389.0,41385.0,0.75]
[1644080105364,0.08043752,41399.0,41389.0,0.06972168]
[1644080105365,0.02,41399.0,41389.0,0.06972168]
[1644080105652,0.02,41399.0,41390.0,0.3]
[1644080106245,0.02,41399.0,41395.0,0.2043312]
[1644080106451,0.02,41399.0,41396.0,0.08598104]
[1644080107446,0.01816522,41399.0,41398.0,0.40162158]
[1644080108048,0.01816522,41399.0,41398.0,0.67714697]
[1644080108256,0.02,41409.0,41399.0,0.75]
[1644080108451,0.02,41409.0,41401.0,0.05]
[1644080108648,0.02,41409.0,41402.0,0.29129076]
[1644080108848,0.02,41409.0,41407.0,0.08755517]
[1644080109051,0.02,41409.0,41408.0,0.29228734]
[1644080109659,0.02,41409.0,41407.0,0.08755517]
[1644080109862,0.02,41409.0,41402.0,0.29129076]
[1644080110058,0.02,41409.0,41401.0,0.07140819]
[1644080110259,0.02,41409.0,41402.0,0.3]
[1644080110460,0.02,41409.0,41401.0,0.02140819]
[1644080110963,0.06041,41407.0,41401.0,0.02140819]
[1644080111160,0.060416,41406.0,41401.0,0.02140819]
[1644080111563,0.06067449,41406.0,41400.0,0.02057915]
[1644080112059,0.06067449,41406.0,41401.0,0.31442411]
[1644080112458,0.060416,41406.0,41401.0,0.31442411]
[1644080112959,0.060416,41406.0,41400.0,0.02057915]
[1644080113209,0.060416,41406.0,41400.0,0.03950595]
[1644080113409,0.060416,41406.0,41400.0,0.0189268]
[1644080113912,0.00075211,41405.0,41400.0,0.0189268]
[1644080114114,0.05616811,41406.0,41401.0,0.55]
[1644080114311,0.05616811,41407.0,41405.0,0.05]
[1644080114515,0.02,41409.0,41406.0,0.3]
[1644080114712,0.02,41409.0,41407.0,0.26005473]
[1644080114912,0.02,41409.0,41408.0,0.4047545]
[1644080115111,0.02,41409.0,41408.0,0.3797545]
[1644080115512,0.02,41409.0,41408.0,0.45758616]
[1644080116119,0.02,41409.0,41408.0,0.85758616]
[1644080116315,0.02,41409.0,41408.0,1.04342016]
[1644080116514,0.02,41409.0,41408.0,0.94342016]
[1644080116864,0.0001,41409.0,41408.0,0.84342016]
[1644080117058,0.02,41419.0,41409.0,0.75]
[1644080117257,0.02,41419.0,41416.0,0.05]
[1644080117856,0.02,41419.0,41418.0,0.05]
[1644080118056,0.02,41419.0,41418.0,0.43925528]
[1644080118264,0.02,41419.0,41418.0,1.2110866]
[1644080118457,0.02,41419.0,41418.0,1.0610866]
[1644080119961,0.015,41419.0,41418.0,0.13302986]
[1644080120158,0.015,41419.0,41414.0,0.05]
[1644080120358,0.015,41419.0,41415.0,0.27364204]
[1644080120618,0.015,41419.0,41405.0,0.33067044]
[1644080120817,0.015,41419.0,41410.0,0.31038358]
[1644080121015,0.000752,41415.0,41410.0,0.31038358]
[1644080121229,0.000752,41415.0,41413.0,0.08943679]
[1644080121817,0.000752,41415.0,41413.0,0.13943679]
[1644080122015,0.015,41419.0,41414.0,0.26400903]
[1644080122215,0.015,41419.0,41417.0,0.05]
[1644080123214,0.015,41419.0,41414.0,0.79121704]
[1644080123417,0.015,41419.0,41413.0,0.08943679]
[1644080123819,0.015,41419.0,41413.0,0.35315705]
[1644080124016,0.015,41419.0,41413.0,0.35280122]
[1644080124465,0.015,41419.0,41414.0,0.24631918]
[1644080124665,0.00075195,41418.0,41414.0,0.24631918]
[1644080125062,0.00075195,41418.0,41413.0,0.694612]
[1644080125264,0.00075195,41418.0,41413.0,0.42642302]
[1644080125465,0.00075195,41418.0,41413.0,0.08943679]
[1644080125765,0.015,41419.0,41413.0,0.08943679]
[1644080125965,0.00075196,41418.0,41413.0,0.08943679]
[1644080126166,0.00075196,41418.0,41414.0,0.23758744]
[1644080126370,0.00075196,41418.0,41413.0,0.35735512]
[1644080126568,0.00075196,41418.0,41415.0,0.37592996]
[1644080126765,0.015,41419.0,41416.0,0.26542316]
[1644080127167,0.01575195,41419.0,41416.0,0.26542316]
[1644080128109,0.015,41419.0,41415.0,0.05]
[1644080129309,0.015,41419.0,41414.0,0.26482815]
[1644080129508,0.01575249,41419.0,41415.0,0.05]
[1644080130408,0.015,41419.0,41415.0,0.05]
[1644080130608,0.015,41419.0,41413.0,0.41001101]
[1644080130810,0.01575249,41419.0,41415.0,0.05]
[1644080131865,0.015,41419.0,41415.0,0.05]
[1644080132058,0.01575249,41419.0,41415.0,0.05]
[1644080132859,0.015,41419.0,41415.0,0.05]
[1644080133260,0.01575249,41419.0,41415.0,0.05]
[1644080133460,0.01575249,41419.0,41413.0,0.41001101]
[1644080134061,0.015,41419.0,41413.0,0.08943679]
[1644080134265,0.0007525,41418.0,41413.0,0.08943679]
[1644080134863,0.0007525,41418.0,41415.0,0.05]
[1644080135064,0.0007525,41418.0,41417.0,0.28921562]
[1644080135363,0.015,41419.0,41413.0,0.08943679]
[1644080135610,0.0157525,41419.0,41413.0,0.08943679]
[1644080136009,0.060387,41418.0,41413.0,0.08943679]
[1644080136311,0.119772,41417.0,41413.0,0.08943679]
[1644080136510,0.180159,41417.0,41413.0,0.08943679]
[1644080137411,0.224559,41417.0,41413.0,0.08943679]
[1644080137909,0.06113952,41417.0,41413.0,0.08943679]
[1644080138109,0.120775,41416.0,41413.0,0.08943679]
[1644080138610,0.120775,41416.0,41414.0,0.045]
[1644080140358,0.06113752,41417.0,41414.0,0.045]
[1644080140557,0.06613752,41417.0,41414.0,0.045]
[1644080141258,0.060385,41417.0,41414.0,0.045]
[1644080141459,0.065385,41417.0,41414.0,0.045]
[1644080143311,0.060385,41417.0,41414.0,0.045]
[1644080144308,0.060385,41417.0,41413.0,0.08943679]
[1644080144508,0.00075251,41418.0,41415.0,0.045]
[1644080144712,0.005,41416.0,41413.0,0.08943679]
[1644080145110,0.0157525,41419.0,41413.0,0.08943679]
[1644080145910,0.005,41416.0,41413.0,0.08943679]
[1644080146311,0.0007525,41418.0,41413.0,0.08943679]
[1644080146509,0.005,41416.0,41413.0,0.08943679]
[1644080146968,0.125777,41416.0,41413.0,0.08943679]
[1644080148368,0.14634021,41416.0,41413.0,0.07744207]
[1644080148968,0.14634021,41416.0,41414.0,0.02443679]
[1644080148969,0.120777,41416.0,41414.0,0.02443679]
[1644080149567,0.14634021,41416.0,41414.0,0.02443679]
[1644080149767,0.02556321,41416.0,41414.0,0.02443679]
[1644080149971,0.06114052,41417.0,41413.0,0.07744207]
[1644080150168,0.02556321,41416.0,41413.0,0.07744207]
[1644080150367,0.06114052,41417.0,41413.0,0.07744207]
[1644080150606,0.02556321,41416.0,41413.0,0.07744207]
[1644080150806,0.06114052,41417.0,41413.0,0.07744207]
[1644080150807,0.060388,41417.0,41413.0,0.07744207]
[1644080151006,0.02556321,41416.0,41413.0,0.07744207]
[1644080151206,0.02356321,41416.0,41413.0,0.10387886]
[1644080151410,0.06114052,41417.0,41413.0,0.10387886]
[1644080152007,0.02356321,41416.0,41413.0,0.10387886]
[1644080152611,0.06114052,41417.0,41413.0,0.10387886]
[1644080153209,0.02356321,41416.0,41413.0,0.10387886]
[1644080153908,0.02356321,41416.0,41413.0,0.09887886]
[1644080154955,0.14433921,41416.0,41413.0,0.09887886]
[1644080155955,0.14433921,41416.0,41413.0,0.07244207]
[1644080157261,0.14433921,41416.0,41413.0,0.09887886]
[1644080157456,0.14433921,41416.0,41405.0,0.02643679]
[1644080157662,0.02356321,41410.0,41403.0,0.02643679]
[1644080157864,0.02356321,41407.0,41401.0,0.01809586]
[1644080158116,0.0444,41407.0,41401.0,0.01809586]
[1644080158512,0.02356321,41404.0,41401.0,0.01809586]
[1644080158812,0.20478121,41404.0,41402.0,0.08994134]
[1644080159113,0.181218,41404.0,41402.0,0.08994134]
[1644080159511,0.20478121,41404.0,41402.0,0.08994134]
[1644080160315,0.20340011,41404.0,41402.0,0.08994134]
[1644080160612,0.060406,41403.0,41402.0,0.08994134]
[1644080161310,0.060406,41403.0,41393.0,0.00301154]
[1644080161512,0.060406,41403.0,41397.0,0.01905028]
[1644080161862,0.060412,41398.0,41397.0,0.01905028]
[1644080162458,0.060412,41398.0,41397.0,0.10077539]
[1644080163060,0.060412,41398.0,41397.0,0.01905028]
[1644080163261,0.104812,41398.0,41397.0,0.01905028]
[1644080163658,0.104812,41398.0,41392.0,0.01931208]
[1644080163858,0.02356321,41394.0,41392.0,0.01931208]
[1644080164059,0.060419,41393.0,41392.0,0.01931208]
[1644080165057,0.060419,41393.0,41392.0,0.04574887]
[1644080165708,0.060419,41393.0,41391.0,0.07527285]
[1644080167007,0.035419,41393.0,41391.0,0.07527285]
[1644080167208,0.035419,41393.0,41391.0,0.4152899]
[1644080167809,0.241663,41399.0,41392.0,0.5]
[1644080168310,0.0004781,41394.0,41392.0,0.5]
[1644080168509,0.0608951,41394.0,41392.0,0.5]
[1644080169009,0.0608951,41394.0,41391.0,0.41599207]
[1644080170155,0.060417,41394.0,41391.0,0.4152899]
[1644080171359,0.0004781,41392.0,41391.0,0.4152899]
[1644080172163,0.060417,41394.0,41391.0,0.4152899]
[1644080172364,0.0484,41393.0,41391.0,0.4152899]
[1644080172764,0.0004781,41392.0,41391.0,0.07527285]
[1644080172964,0.108822,41392.0,41391.0,0.07527285]
[1644080173209,0.1093001,41392.0,41391.0,0.07527285]
[1644080173405,0.1093001,41392.0,41390.0,0.00070556]
[1644080173605,0.1093001,41392.0,41387.0,0.01825514]
[1644080173805,0.1093001,41392.0,41389.0,0.00070557]
[1644080174405,0.1093001,41392.0,41391.0,0.07561292]
[1644080174805,0.1093001,41392.0,41387.0,0.01825514]
[1644080175006,0.1093001,41392.0,41389.0,0.00070481]
[1644080176006,0.1093001,41392.0,41388.0,0.44034724]
[1644080176305,0.1093001,41392.0,41388.0,0.44105206]
[1644080177361,0.1093001,41392.0,41388.0,0.44034724]
[1644080177560,0.1093001,41392.0,41388.0,0.44105207]
[1644080177561,0.0004781,41389.0,41388.0,0.44105207]
[1644080178467,0.0004781,41389.0,41388.0,0.44034724]
[1644080179064,0.060422,41392.0,41388.0,0.48986914]
[1644080179264,0.060413,41396.0,41389.0,0.3]
[1644080179464,0.1817401,41403.0,41393.0,0.0495219]
[1644080179763,0.3674,41406.0,41389.0,0.3]
[1644080179764,0.11845833,41405.0,41398.0,0.0495219]
[1644080179965,0.0004781,41400.0,41396.0,0.07369058]
[1644080180163,0.060416,41399.0,41396.0,0.07369058]
[1644080180364,0.120825,41399.0,41393.0,0.0495219]
[1644080180609,0.060416,41399.0,41393.0,0.0495219]
[1644080180810,0.0004781,41398.0,41393.0,0.0495219]
[1644080181112,0.060416,41399.0,41394.0,0.25492998]
[1644080181310,0.0004781,41395.0,41394.0,0.25492998]
[1644080181609,0.0004781,41395.0,41394.0,0.08391043]
[1644080181809,0.0004781,41395.0,41392.0,0.01960166]
[1644080182508,0.0609011,41395.0,41392.0,0.01960166]
[1644080182912,0.31743614,41394.0,41392.0,0.01960166]
[1644080183111,0.36583614,41394.0,41392.0,0.01960166]
[1644080183311,0.0484,41394.0,41392.0,0.01960166]
[1644080183714,0.0484,41394.0,41387.0,0.06936772]
[1644080183913,0.0004781,41392.0,41387.0,0.01936772]
[1644080184112,0.0484,41391.0,41387.0,0.01936772]
[1644080184362,0.0484,41391.0,41390.0,0.31365669]
[1644080184555,0.0004781,41392.0,41390.0,0.31365669]
[1644080184754,0.0004781,41392.0,41389.0,0.27543401]
[1644080184955,0.0609081,41393.0,41391.0,0.08000998]
[1644080185154,0.0609081,41393.0,41391.0,0.05500998]
[1644080185354,0.06043,41393.0,41391.0,0.05500998]
[1644080185755,0.0004781,41392.0,41391.0,0.05500998]
[1644080186361,0.0004781,41392.0,41390.0,0.00075129]
[1644080186957,0.0004781,41392.0,41387.0,0.01980408]
[1644080187158,0.120857,41393.0,41389.0,0.0007513]
[1644080187357,0.0004781,41390.0,41389.0,0.0007513]
[1644080187558,0.120857,41393.0,41389.0,0.0007513]
[1644080187757,0.169257,41393.0,41389.0,0.0007513]
[1644080188202,0.169257,41393.0,41387.0,0.08919242]
[1644080188203,0.0004781,41390.0,41387.0,0.08919242]
[1644080188403,0.0004781,41390.0,41389.0,0.0007513]
[1644080189302,0.0004781,41390.0,41387.0,0.08919242]
[1644080189502,0.0004781,41390.0,41387.0,0.08994374]
[1644080190505,0.0004781,41390.0,41387.0,0.08919242]
[1644080190706,0.060428,41391.0,41387.0,0.08919242]
[1644080190907,0.060428,41391.0,41387.0,0.08169242]
[1644080191613,0.120857,41393.0,41387.0,0.08169242]
[1644080191863,0.120857,41393.0,41387.0,0.08244374]
[1644080192059,0.0004781,41392.0,41387.0,0.05744374]
[1644080192758,0.120857,41393.0,41387.0,0.05744374]
[1644080192959,0.120857,41393.0,41387.0,0.05669242]
[1644080193160,0.0004781,41388.0,41387.0,0.05744374]
[1644080193360,0.0609021,41388.0,41387.0,0.05744374]
[1644080194164,0.060424,41388.0,41387.0,0.05669242]
[1644080194561,0.060424,41388.0,41386.0,0.002]
[1644080195164,0.0004781,41387.0,41386.0,0.002]
[1644080195805,0.0004781,41387.0,41384.0,0.0031]
[1644080196005,0.0004781,41387.0,41381.0,0.00299063]
[1644080196205,0.01714865,41382.0,41381.0,0.00299063]
[1644080196406,0.07758165,41382.0,41381.0,0.00299063]
[1644080197809,0.07805975,41382.0,41381.0,0.00299063]
[1644080199213,0.12645975,41382.0,41381.0,0.00299063]
[1644080201159,0.30779775,41382.0,41375.0,0.00019063]
[1644080201357,0.0004781,41378.0,41375.0,0.00019063]
[1644080201559,0.060445,41377.0,41375.0,0.00019063]
[1644080202758,0.0004781,41376.0,41375.0,0.00019063]
[1644080203210,0.0488781,41376.0,41375.0,0.00019063]
[1644080208960,0.0488781,41376.0,41369.0,0.19718639]
[1644080209158,0.0484,41376.0,41370.0,0.25991165]
[1644080209357,0.0488781,41376.0,41370.0,0.25991165]
[1644080209559,0.060445,41377.0,41374.0,0.06856521]
[1644080210060,0.0004781,41375.0,41374.0,0.06856521]
[1644080210461,0.0004781,41375.0,41368.0,0.0031]
[1644080210722,0.0609361,41369.0,41368.0,0.0031]
[1644080210921,0.0609361,41369.0,41364.0,0.00219399]
[1644080210922,0.55,41368.0,41364.0,0.00219399]
[1644080211120,0.0004781,41365.0,41364.0,0.00219399]
[1644080211322,0.31931785,41365.0,41364.0,0.002]
[1644080211520,0.0488781,41365.0,41363.0,0.00129399]
[1644080211720,0.1488781,41365.0,41363.0,0.0011]
[1644080211921,0.060477,41364.0,41362.0,0.02175304]
[1644080212122,0.060477,41364.0,41362.0,0.02155905]
[1644080212327,0.0484,41363.0,41362.0,0.02155905]
[1644080212534,0.19942373,41362.0,41360.0,0.01]
[1644080212823,0.0488781,41361.0,41360.0,0.01]
[1644080213621,0.0488781,41361.0,41358.0,0.0044]
[1644080213821,0.0488781,41361.0,41358.0,0.0036]
[1644080214022,0.29936654,41361.0,41358.0,0.0036]
[1644080214462,0.0488781,41361.0,41354.0,0.0011]
[1644080214662,0.0004781,41358.0,41354.0,0.0011]
[1644080215762,0.370973,41357.0,41354.0,0.0011]
[1644080215962,0.0488781,41356.0,41355.0,0.00074895]
[1644080216163,0.0488781,41356.0,41352.0,0.00074895]
[1644080216364,0.0004781,41353.0,41352.0,0.00074895]
[1644080216564,0.0609661,41353.0,41352.0,0.00074895]
[1644080217165,0.0609661,41353.0,41351.0,0.02]
[1644080217166,0.1093661,41353.0,41351.0,0.02]
[1644080217370,0.45,41352.0,41351.0,0.02]
[1644080217767,0.55,41351.0,41345.0,0.0022]
[1644080217966,0.0004781,41346.0,41345.0,0.0022]
[1644080218208,0.0488781,41346.0,41345.0,0.0022]
[1644080219607,0.0488781,41346.0,41341.0,0.06527708]
[1644080219808,0.108901,41346.0,41341.0,0.06527708]
[1644080220012,0.0609781,41342.0,41341.0,0.06527708]
[1644080220609,0.1043781,41342.0,41341.0,0.06527708]
[1644080220814,0.2148971,41342.0,41339.0,0.00494914]
[1644080221209,0.2648971,41342.0,41339.0,0.00494914]
[1644080221415,1.08864428,41349.0,41342.0,0.75]
[1644080221416,0.181498,41349.0,41342.0,0.75]
[1644080221611,0.1168,41354.0,41342.0,0.75]
[1644080221612,0.1168,41354.0,41348.0,0.0245219]
[1644080221872,0.01883647,41352.0,41348.0,0.0245219]
[1644080222070,0.01883647,41352.0,41349.0,0.00074903]
[1644080222071,0.0484,41351.0,41349.0,0.00074903]
[1644080222467,0.0484,41351.0,41349.0,0.0245219]
[1644080223066,0.01883647,41352.0,41350.0,0.24594109]
[1644080223270,0.01883647,41352.0,41350.0,0.31877798]
[1644080223866,0.01883647,41352.0,41350.0,0.07283689]
[1644080224467,0.00026182,41353.0,41350.0,0.07283689]
[1644080224667,0.00026182,41353.0,41352.0,0.0245219]
[1644080225276,0.00026182,41353.0,41350.0,0.07283689]
[1644080225470,0.0254781,41351.0,41346.0,0.0245219]
[1644080225713,0.0254781,41351.0,41342.0,0.7487456]
[1644080225714,0.0254781,41349.0,41343.0,0.0245219]
[1644080225912,0.060488,41350.0,41343.0,0.0245219]
[1644080226312,0.060488,41350.0,41343.0,0.27971585]